fUST/lending_fUST_20250408
["ID","MTS","AMOUNT","RATE_DAILY","PERIOD"]
[357480716,1744080651285,-903.98,0.00023835,2]
[357480717,1744080651295,-517.62,0.00023835,2]
[357480718,1744080651305,-1471.01,0.00023835,2]
[357480719,1744080651315,-500.0,0.00023835,2]
[357480720,1744080651325,-823.57,0.00023835,2]
[357480721,1744080651335,-563.79,0.00023835,2]
[357480722,1744080651345,-1205.37,0.00023835,2]
[357480723,1744080651356,-500.0,0.00023835,2]
[357480724,1744080651366,-500.0,0.00023835,2]
[357480725,1744080651376,-500.0,0.00023835,2]
[357480726,1744080651386,-1071.82,0.00023835,2]
[357480727,1744080651396,-1075.98,0.00023835,2]
[357480728,1744080651406,-500.0,0.00023835,2]
[357480729,1744080651416,-3853.42,0.00023835,2]
[357480730,1744080651425,-500.0,0.00023835,2]
[357480731,1744080651436,-806.99,0.00023835,2]
[357480732,1744080651446,-500.0,0.00023835,2]
[357480733,1744080651456,-500.0,0.00023835,2]
[357480734,1744080651466,-500.0,0.00023835,2]
[357480735,1744080651476,-500.0,0.00023835,2]
[357480736,1744080651487,-914.65,0.00023835,2]
[357480737,1744080651496,-500.0,0.00023835,2]
[357480738,1744080651507,-1408.78,0.00023835,2]
[357480739,1744080651518,-500.0,0.00023835,2]
[357480740,1744080651528,-885.26,0.00023835,2]
[357480741,1744080651539,-500.0,0.00023835,2]
[357480742,1744080651549,-500.0,0.00023835,2]
[357480743,1744080651559,-1443.13,0.00023835,2]
[357480744,1744080651570,-838.82,0.00023835,2]
[357480745,1744080651580,-2520.44,0.00023835,2]
[357480746,1744080651590,-500.0,0.00023835,2]
[357480747,1744080651601,-1457.24,0.00023835,2]
[357480748,1744080651610,-500.0,0.00023835,2]
[357480749,1744080651620,-1190.25,0.00023835,2]
[357480750,1744080651630,-500.0,0.00023835,2]
[357480751,1744080651640,-500.0,0.00023835,2]
[357480752,1744080651649,-1820.22,0.00023835,2]
[357480753,1744080651661,-874.38,0.00023835,2]
[357480754,1744080651671,-500.0,0.00023835,2]
[357480755,1744080651681,-500.0,0.00023835,2]
[357480756,1744080651691,-2243.29,0.00023835,2]
[357480757,1744080651701,-918.27,0.00023835,2]
[357480758,1744080651713,-832.11,0.00023835,2]
[357480759,1744080651723,-1243.39,0.00023835,2]
[357480760,1744080651733,-500.0,0.00023835,2]
[357480761,1744080651743,-500.0,0.00023835,2]
[357480762,1744080651753,-500.0,0.00023835,2]
[357480763,1744080651763,-531.98,0.00023835,2]
[357480764,1744080651773,-930.42,0.00023835,2]
[357480765,1744080651784,-1271.79,0.00023835,2]
[357480766,1744080651795,-500.0,0.00023835,2]
[357480767,1744080651805,-500.0,0.00023835,2]
[357480768,1744080651815,-500.0,0.00023835,2]
[357480769,1744080651825,-500.0,0.00023835,2]
[357480770,1744080651837,-500.0,0.00023835,2]
[357480771,1744080651847,-1627.71,0.00023835,2]
[357480772,1744080651857,-500.0,0.00023835,2]
[357480773,1744080651868,-500.0,0.00023835,2]
[357480774,1744080651879,-627.02,0.00023835,2]
[357480775,1744080651889,-6572.6,0.00023835,2]
[357480776,1744080651900,-500.32183657,0.00023835,2]
[357480777,1744080651910,-1335.53,0.00023835,2]
[357480778,1744080651920,-500.0,0.00023835,2]
[357480779,1744080651931,-500.0,0.00023835,2]
[357480780,1744080651941,-500.0,0.00024109,2]
[357480781,1744080651952,-500.0,0.00024109,2]
[357480782,1744080651964,-500.0,0.00024109,2]
[357480783,1744080651974,-634.06,0.00024109,2]
[357480784,1744080651984,-500.0,0.00024109,2]
[357480785,1744080651994,-640.31,0.00024109,2]
[357480786,1744080652005,-500.0,0.00024109,2]
[357480787,1744080652014,-500.0,0.00024109,2]
[357480788,1744080652024,-500.0,0.00024109,2]
[357480789,1744080652035,-500.0,0.00024109,2]
[357480790,1744080652045,-500.0,0.00024109,2]
[357480791,1744080652055,-875.05,0.00024109,2]
[357480792,1744080652066,-500.0,0.00024109,2]
[357480793,1744080652076,-704.94,0.00024109,2]
[357480794,1744080652086,-518.15,0.00024109,2]
[357480795,1744080652096,-665.11,0.00024109,2]
[357480796,1744080652106,-500.0,0.00024109,2]
[357480797,1744080652117,-500.0,0.00024109,2]
[357480798,1744080652128,-500.0,0.00024109,2]
[357480799,1744080652139,-500.0,0.00024109,2]
[357480800,1744080652149,-452.73808573,0.00024109,2]
[357480801,1744080652158,-500.0,0.00024109,2]
[357480802,1744080652168,-870.69,0.00024109,2]
[357480803,1744080652179,-500.0,0.00024109,2]
[357480804,1744080652189,-3958.33,0.00024109,2]
[357480805,1744080652199,-500.0,0.00024109,2]
[357480806,1744080652209,-500.0,0.00024109,2]
[357480807,1744080652219,-519.84,0.00024109,2]
[357480808,1744080652228,-845.85,0.00024109,2]
[357480809,1744080652238,-500.0,0.00024109,2]
[357480810,1744080652248,-634.46,0.00024109,2]
[357480811,1744080652258,-389.45524024,0.00024109,2]
[357480812,1744080652267,-357.53557895,0.00024109,2]
[357480813,1744080652277,-157.91640295,0.00024109,2]
[357480814,1744080652287,-293.47734858,0.00024109,2]
[357480815,1744080652297,-500.0,0.00024109,2]
[357480816,1744080652307,-500.0,0.00024109,2]
[357480817,1744080652317,-514.04,0.00024109,2]
[357480818,1744080652326,-500.0,0.00024109,2]
[357480819,1744080652336,-756.23,0.00024109,2]
[357480820,1744080652345,-500.0,0.00024109,2]
[357480821,1744080652355,-539.18233485,0.00024109,2]
[357480822,1744080652364,-1558.34,0.00024109,2]
[357480823,1744080652374,-500.0,0.00024109,2]
[357480824,1744080652383,-500.0,0.00024109,2]
[357480825,1744080652393,-181.3280427,0.00024109,2]
[357480826,1744080652403,-644.87762528,0.00024109,2]
[357480827,1744080652413,-1644.4,0.00024109,2]
[357480828,1744080652422,-842.36,0.00024109,2]
[357480829,1744080652432,-500.0,0.00024109,2]
[357480830,1744080652442,-571.90904836,0.00024109,2]
[357480831,1744080652455,-500.0,0.00024109,2]
[357480832,1744080652465,-1315.87,0.00024109,2]
[357480833,1744080652476,-500.0,0.00024109,2]
[357480834,1744080652616,-2081.85,0.00024109,2]
[357480835,1744080652644,-500.0,0.00024109,2]
[357480836,1744080652655,-500.0,0.00024109,2]
[357480837,1744080652664,-161.98988472,0.00024109,2]
[357480838,1744080652674,-500.0,0.00024109,2]
[357480839,1744080652683,-949.55,0.00024109,2]
[357480840,1744080652693,-500.0,0.00024109,2]
[357480841,1744080652703,-1734.75,0.00024109,2]
[357480842,1744080652713,-510.31,0.00024109,2]
[357480843,1744080652722,-903.98,0.00024109,2]
[357480844,1744080652732,-517.62,0.00024109,2]
[357480845,1744080652742,-1471.01,0.00024109,2]
[357480846,1744080652752,-500.0,0.00024109,2]
[357480847,1744080652762,-823.57,0.00024109,2]
[357480848,1744080652771,-563.79,0.00024109,2]
[357480849,1744080652781,-1205.37,0.00024109,2]
[357480850,1744080652791,-500.0,0.00024109,2]
[357480851,1744080652801,-477.61740942,0.00024109,2]
[357480852,1744080652811,-500.0,0.00024109,2]
[357480853,1744080652821,-1071.82,0.00024109,2]
[357480854,1744080652831,-1075.98,0.00024109,2]
[357480855,1744080652845,-500.0,0.00024109,2]
[357480856,1744080652861,-3853.42,0.00024109,2]
[357480857,1744080652871,-500.0,0.00024109,2]
[357480858,1744080652881,-806.99,0.00024109,2]
[357480859,1744080652891,-500.0,0.00024109,2]
[357480860,1744080652900,-643.77348639,0.00024109,2]
[357480861,1744080652910,-500.0,0.00024109,2]
[357480862,1744080652920,-500.0,0.00024109,2]
[357480863,1744080652929,-914.65,0.00024109,2]
[357480864,1744080652939,-500.0,0.00024109,2]
[357480865,1744080652948,-1408.78,0.00024109,2]
[357480866,1744080652963,-500.0,0.00024109,2]
[357480867,1744080652973,-885.26,0.00024109,2]
[357480868,1744080652984,-500.0,0.00024109,2]
[357480869,1744080652995,-291.22764961,0.00024109,2]
[357480870,1744080653006,-1443.13,0.00024109,2]
[357480871,1744080653016,-838.82,0.00024109,2]
[357480872,1744080653027,-2520.44,0.00024109,2]
[357480873,1744080653037,-500.0,0.00024109,2]
[357480874,1744080653046,-1457.24,0.00024109,2]
[357480875,1744080653056,-500.0,0.00024109,2]
[357480876,1744080653066,-1190.25,0.00024109,2]
[357480877,1744080653076,-500.0,0.00024109,2]
[357480878,1744080653085,-500.0,0.00024109,2]
[357480879,1744080653095,-1820.22,0.00024109,2]
[357480880,1744080653104,-874.38,0.00024109,2]
[357480881,1744080653114,-455.96637912,0.00024109,2]
[357480882,1744080653124,-500.0,0.00024109,2]
[357480883,1744080653133,-2243.29,0.00024109,2]
[357480884,1744080653143,-918.27,0.00024109,2]
[357480885,1744080653152,-832.11,0.00024109,2]
[357480886,1744080653162,-1243.39,0.00024109,2]
[357480887,1744080653173,-500.0,0.00024109,2]
[357480888,1744080653182,-500.0,0.00024109,2]
[357480889,1744080653192,-500.0,0.00024109,2]
[357480890,1744080653202,-531.98,0.00024109,2]
[357480891,1744080653212,-930.42,0.00024109,2]
[357480892,1744080653222,-1271.79,0.00024109,2]
[357480893,1744080653232,-500.0,0.00024109,2]
[357480894,1744080653242,-500.0,0.00024109,2]
[357480895,1744080653252,-500.0,0.00024109,2]
[357480896,1744080653262,-500.0,0.00024109,2]
[357480897,1744080653272,-500.0,0.00024109,2]
[357480898,1744080653281,-1627.71,0.00024109,2]
[357480899,1744080653290,-500.0,0.00024109,2]
[357480900,1744080653300,-500.0,0.00024109,2]
[357480901,1744080653310,-627.02,0.00024109,2]
[357480902,1744080653320,-6572.6,0.00024109,2]
[357480903,1744080653330,-1335.53,0.00024109,2]
[357480904,1744080653339,-214.59994313,0.00024109,2]
[357480905,1744080653349,-500.0,0.00024109,2]
[357480906,1744080653358,-362.19133297,0.00024226,2]
[357480907,1744080653367,-215.0738,0.00024242,2]
[357480908,1744080653376,-500.0,0.00024383,2]
[357480909,1744080653386,-500.0,0.00024383,2]
[357480910,1744080653395,-500.0,0.00024383,2]
[357480911,1744080653405,-634.06,0.00024383,2]
[357480912,1744080653414,-283.86152364,0.00024383,2]
[357480913,1744080653423,-640.31,0.00024383,2]
[357480914,1744080653432,-500.0,0.00024383,2]
[357480915,1744080653442,-500.0,0.00024383,2]
[357480916,1744080653451,-500.0,0.00024383,2]
[357480917,1744080653460,-500.0,0.00024383,2]
[357480918,1744080653469,-500.0,0.00024383,2]
[357480919,1744080653479,-875.05,0.00024383,2]
[357480920,1744080653489,-500.0,0.00024383,2]
[357480921,1744080653498,-704.94,0.00024383,2]
[357480922,1744080653507,-518.15,0.00024383,2]
[357480923,1744080653517,-665.11,0.00024383,2]
[357480924,1744080653527,-500.0,0.00024383,2]
[357480925,1744080653536,-500.0,0.00024383,2]
[357480926,1744080653545,-500.0,0.00024383,2]
[357480927,1744080653554,-500.0,0.00024383,2]
[357480928,1744080653563,-500.0,0.00024383,2]
[357480929,1744080653572,-870.69,0.00024383,2]
[357480930,1744080653581,-500.0,0.00024383,2]
[357480931,1744080653591,-3958.33,0.00024383,2]
[357480932,1744080653600,-500.0,0.00024383,2]
[357480933,1744080653609,-500.0,0.00024383,2]
[357480934,1744080653619,-519.84,0.00024383,2]
[357480935,1744080653629,-845.85,0.00024383,2]
[357480936,1744080653638,-500.0,0.00024383,2]
[357480937,1744080653647,-634.46,0.00024383,2]
[357480938,1744080653658,-500.0,0.00024383,2]
[357480939,1744080653667,-500.0,0.00024383,2]
[357480940,1744080653676,-514.04,0.00024383,2]
[357480941,1744080653685,-500.0,0.00024383,2]
[357480942,1744080653695,-756.23,0.00024383,2]
[357480943,1744080653705,-459.00766799,0.00024383,2]
[357480944,1744080653715,-1558.34,0.00024383,2]
[357480945,1744080653724,-500.0,0.00024383,2]
[357480946,1744080653733,-500.0,0.00024383,2]
[357480947,1744080653742,-1644.4,0.00024383,2]
[357480948,1744080653751,-842.36,0.00024383,2]
[357480949,1744080653761,-500.0,0.00024383,2]
[357480950,1744080653770,-500.0,0.00024383,2]
[357480951,1744080653780,-1315.87,0.00024383,2]
[357480952,1744080653789,-500.0,0.00024383,2]
[357480953,1744080653798,-2081.85,0.00024383,2]
[357480954,1744080653809,-500.0,0.00024383,2]
[357480955,1744080653818,-500.0,0.00024383,2]
[357480956,1744080653828,-500.0,0.00024383,2]
[357480957,1744080653837,-949.55,0.00024383,2]
[357480958,1744080653846,-500.0,0.00024383,2]
[357480959,1744080653856,-1734.75,0.00024383,2]
[357480960,1744080653866,-510.31,0.00024383,2]
[357480961,1744080653875,-903.98,0.00024383,2]
[357480962,1744080653885,-517.62,0.00024383,2]
[357480963,1744080653894,-1471.01,0.00024383,2]
[357480964,1744080653903,-500.0,0.00024383,2]
[357480965,1744080653912,-823.57,0.00024383,2]
[357480966,1744080653922,-563.79,0.00024383,2]
[357480967,1744080653930,-1205.37,0.00024383,2]
[357480968,1744080653941,-326.45859928,0.00024383,2]
[357480969,1744080653951,-500.0,0.00024383,2]
[357480970,1744080653964,-1071.82,0.00024383,2]
[357480971,1744080653973,-1075.98,0.00024383,2]
[357480972,1744080653982,-500.0,0.00024383,2]
[357480973,1744080653991,-3853.42,0.00024383,2]
[357480974,1744080654001,-487.4252717,0.00024383,2]
[357480975,1744080654011,-806.99,0.00024383,2]
[357480976,1744080654021,-500.0,0.00024383,2]
[357480977,1744080654032,-500.0,0.00024383,2]
[357480978,1744080654042,-500.0,0.00024383,2]
[357480979,1744080654051,-914.65,0.00024383,2]
[357480980,1744080654060,-500.0,0.00024383,2]
[357480981,1744080654070,-1408.78,0.00024383,2]
[357480982,1744080654080,-500.0,0.00024383,2]
[357480983,1744080654090,-885.26,0.00024383,2]
[357480984,1744080654099,-500.0,0.00024383,2]
[357480985,1744080654108,-1443.13,0.00024383,2]
[357480986,1744080654118,-838.82,0.00024383,2]
[357480987,1744080654128,-2520.44,0.00024383,2]
[357480988,1744080654138,-500.0,0.00024383,2]
[357480989,1744080654147,-1457.24,0.00024383,2]
[357480990,1744080654156,-405.78504749,0.00024383,2]
[357480991,1744080654166,-1190.25,0.00024383,2]
[357480992,1744080654175,-500.0,0.00024383,2]
[357480993,1744080654184,-1820.22,0.00024383,2]
[357480994,1744080654194,-500.0,0.00024383,2]
[357480995,1744080654203,-874.38,0.00024383,2]
[357480996,1744080654213,-500.0,0.00024383,2]
[357480997,1744080654222,-2243.29,0.00024383,2]
[357480998,1744080654232,-918.27,0.00024383,2]
[357480999,1744080654241,-832.11,0.00024383,2]
[357481000,1744080654251,-1243.39,0.00024383,2]
[357481001,1744080654260,-500.0,0.00024383,2]
[357481002,1744080654271,-500.0,0.00024383,2]
[357481003,1744080654281,-500.0,0.00024383,2]
[357481004,1744080654290,-531.98,0.00024383,2]
[357481005,1744080654300,-930.42,0.00024383,2]
[357481006,1744080654309,-1271.79,0.00024383,2]
[357481007,1744080654320,-500.0,0.00024383,2]
[357481008,1744080654329,-500.0,0.00024383,2]
[357481009,1744080654339,-506.90679761,0.00024383,2]
[357481010,1744080654349,-500.0,0.00024383,2]
[357481011,1744080654360,-500.0,0.00024383,2]
[357481012,1744080654375,-1627.71,0.00024383,2]
[357481013,1744080654385,-500.0,0.00024383,2]
[357481014,1744080654395,-500.0,0.00024383,2]
[357481015,1744080654404,-627.02,0.00024383,2]
[357481016,1744080654414,-6572.6,0.00024383,2]
[357481017,1744080654423,-1335.53,0.00024383,2]
[357481018,1744080654432,-160.0,0.0002447,2]
[357481019,1744080654442,-160.0,0.0002447,2]
[357481020,1744080654453,-160.0,0.0002447,2]
[357481021,1744080654462,-12530.86563381,0.0002447,2]
[357481022,1744080654472,-419.46366559,0.0002447,2]
[357481023,1744080654481,-556.81129197,0.00024657,2]
[357481024,1744080654491,-500.0,0.00024657,2]
[357481025,1744080654500,-500.0,0.00024657,2]
[357481026,1744080654509,-634.06,0.00024657,2]
[357481027,1744080654520,-640.31,0.00024657,2]
[357481028,1744080654530,-500.0,0.00024657,2]
[357481029,1744080654539,-500.0,0.00024657,2]
[357481030,1744080654549,-500.0,0.00024657,2]
[357481031,1744080654558,-500.0,0.00024657,2]
[357481032,1744080654567,-500.0,0.00024657,2]
[357481033,1744080654578,-875.05,0.00024657,2]
[357481034,1744080654587,-500.0,0.00024657,2]
[357481035,1744080654597,-704.94,0.00024657,2]
[357481036,1744080654607,-518.15,0.00024657,2]
[357481037,1744080654617,-665.11,0.00024657,2]
[357481038,1744080654632,-500.0,0.00024657,2]
[357481039,1744080654641,-500.0,0.00024657,2]
[357481040,1744080654651,-500.0,0.00024657,2]
[357481041,1744080654661,-500.0,0.00024657,2]
[357481042,1744080654671,-500.0,0.00024657,2]
[357481043,1744080654681,-503.29519876,0.00024657,2]
[357481044,1744080654691,-500.0,0.00024657,2]
[357481045,1744080654702,-500.0,0.00024657,2]
[357481046,1744080654712,-500.0,0.00024657,2]
[357481047,1744080654722,-500.0,0.00024657,2]
[357481048,1744080654731,-870.69,0.00024657,2]
[357481049,1744080654742,-200.0,0.00024657,2]
[357481050,1744080654753,-500.0,0.00024657,2]
[357481051,1744080654764,-500.0,0.00024657,2]
[357481052,1744080654777,-269.76998995,0.00024657,2]
[357481053,1744080654787,-500.0,0.00024657,2]
[357481054,1744080654797,-3958.33,0.00024657,2]
[357481055,1744080654807,-500.0,0.00024657,2]
[357481056,1744080654816,-395.25267583,0.00024657,2]
[357481057,1744080654826,-519.84,0.00024657,2]
[357481058,1744080654835,-845.85,0.00024657,2]
[357481059,1744080654845,-500.0,0.00024657,2]
[357481060,1744080654854,-634.46,0.00024657,2]
[357481061,1744080654865,-500.0,0.00024657,2]
[357481062,1744080654875,-500.0,0.00024657,2]
[357481063,1744080654885,-514.04,0.00024657,2]
[357481064,1744080654894,-500.0,0.00024657,2]
[357481065,1744080654904,-756.23,0.00024657,2]
[357481066,1744080654914,-1558.34,0.00024657,2]
[357481067,1744080654924,-500.0,0.00024657,2]
[357481068,1744080654934,-500.0,0.00024657,2]
[357481069,1744080654944,-1644.4,0.00024657,2]
[357481070,1744080654956,-842.36,0.00024657,2]
[357481071,1744080654966,-500.0,0.00024657,2]
[357481072,1744080654975,-521.50206092,0.00024657,2]
[357481073,1744080654985,-1315.87,0.00024657,2]
[357481074,1744080654995,-500.0,0.00024657,2]
[357481075,1744080655004,-2081.85,0.00024657,2]
[357481076,1744080655014,-500.0,0.00024657,2]
[357481077,1744080655025,-500.0,0.00024657,2]
[357481078,1744080655035,-500.0,0.00024657,2]
[357481079,1744080655046,-949.55,0.00024657,2]
[357481080,1744080655056,-500.0,0.00024657,2]
[357481081,1744080655066,-1734.75,0.00024657,2]
[357481082,1744080655076,-510.31,0.00024657,2]
[357481083,1744080655085,-903.98,0.00024657,2]
[357481084,1744080655095,-517.62,0.00024657,2]
[357481085,1744080655105,-1471.01,0.00024657,2]
[357481086,1744080655115,-500.0,0.00024657,2]
[357481087,1744080655124,-823.57,0.00024657,2]
[357481088,1744080655134,-563.79,0.00024657,2]
[357481089,1744080655144,-1205.37,0.00024657,2]
[357481090,1744080655154,-500.0,0.00024657,2]
[357481091,1744080655164,-1071.82,0.00024657,2]
[357481092,1744080655173,-1075.98,0.00024657,2]
[357481093,1744080655183,-500.0,0.00024657,2]
[357481094,1744080655192,-3853.42,0.00024657,2]
[357481095,1744080655202,-806.99,0.00024657,2]
[357481096,1744080655211,-518.96611911,0.00024657,2]
[357481097,1744080655222,-500.0,0.00024657,2]
[357481098,1744080655232,-500.0,0.00024657,2]
[357481099,1744080655242,-914.65,0.00024657,2]
[357481100,1744080655252,-500.0,0.00024657,2]
[357481101,1744080655262,-1408.78,0.00024657,2]
[357481102,1744080655272,-500.0,0.00024657,2]
[357481103,1744080655281,-885.26,0.00024657,2]
[357481104,1744080655291,-500.0,0.00024657,2]
[357481105,1744080655301,-1443.13,0.00024657,2]
[357481106,1744080655310,-838.82,0.00024657,2]
[357481107,1744080655319,-2520.44,0.00024657,2]
[357481108,1744080655330,-500.0,0.00024657,2]
[357481109,1744080655340,-1457.24,0.00024657,2]
[357481110,1744080655349,-1190.25,0.00024657,2]
[357481111,1744080655359,-500.0,0.00024657,2]
[357481112,1744080655369,-1820.22,0.00024657,2]
[357481113,1744080655378,-500.0,0.00024657,2]
[357481114,1744080655388,-874.38,0.00024657,2]
[357481115,1744080655397,-167.8303843,0.00024657,2]
[357481116,1744080655406,-2243.29,0.00024657,2]
[357481117,1744080655416,-918.27,0.00024657,2]
[357481118,1744080655425,-832.11,0.00024657,2]
[357481119,1744080655435,-1243.39,0.00024657,2]
[357481120,1744080655444,-500.0,0.00024657,2]
[357481121,1744080655454,-500.0,0.00024657,2]
[357481122,1744080655463,-500.0,0.00024657,2]
[357481123,1744080655473,-531.98,0.00024657,2]
[357481124,1744080655482,-930.42,0.00024657,2]
[357481125,1744080655492,-1271.79,0.00024657,2]
[357481126,1744080655501,-500.0,0.00024657,2]
[357481127,1744080655510,-500.0,0.00024657,2]
[357481128,1744080655519,-500.0,0.00024657,2]
[357481129,1744080655528,-500.0,0.00024657,2]
[357481130,1744080655538,-1627.71,0.00024657,2]
[357481131,1744080655547,-444.36723547,0.00024657,2]
[357481132,1744080655557,-243.72639097,0.00024657,2]
[357481133,1744080655566,-6572.6,0.00024657,2]
[357481134,1744080655576,-627.02,0.00024657,2]
[357481135,1744080655585,-1335.53,0.00024657,2]
[357481136,1744080655595,-500.0,0.00024658,2]
[357481137,1744080655605,-500.0,0.00024658,2]
[357481138,1744080655614,-500.0,0.00024658,2]
[357481139,1744080655623,-500.0,0.00024658,2]
[357481140,1744080655632,-500.0,0.00024658,2]
[357481141,1744080655642,-500.0,0.00024658,2]
[357481142,1744080655651,-500.0,0.00024658,2]
[357481143,1744080655661,-500.0,0.00024658,2]
[357481144,1744080655670,-500.0,0.00024658,2]
[357481145,1744080655679,-500.0,0.00024658,2]
[357481146,1744080655688,-500.0,0.00024658,2]
[357481147,1744080655697,-500.0,0.00024658,2]
[357481148,1744080655707,-500.0,0.00024658,2]
[357481149,1744080655715,-500.0,0.00024658,2]
[357481150,1744080655725,-500.0,0.00024658,2]
[357481151,1744080655735,-500.0,0.00024658,2]
[357481152,1744080655745,-500.0,0.00024658,2]
[357481153,1744080655755,-500.0,0.00024658,2]
[357481154,1744080655764,-500.0,0.00024658,2]
[357481155,1744080655775,-500.0,0.00024658,2]
[357481156,1744080655785,-500.0,0.00024658,2]
[357481157,1744080655795,-500.0,0.00024658,2]
[357481158,1744080655805,-500.0,0.00024658,2]
[357481159,1744080655815,-500.0,0.00024658,2]
[357481160,1744080655825,-500.0,0.00024658,2]
[357481161,1744080655985,-500.0,0.00024658,2]
[357481162,1744080655998,-500.0,0.00024658,2]
[357481163,1744080656007,-500.0,0.00024658,2]
[357481164,1744080656018,-500.0,0.00024658,2]
[357481165,1744080656029,-500.0,0.00024658,2]
[357481166,1744080656039,-500.0,0.00024658,2]
[357481167,1744080656049,-500.0,0.00024658,2]
[357481168,1744080656061,-500.0,0.00024658,2]
[357481169,1744080656082,-500.0,0.00024658,2]
[357481170,1744080656102,-500.0,0.00024658,2]
[357481171,1744080656120,-500.0,0.00024658,2]
[357481172,1744080656139,-500.0,0.00024658,2]
[357481173,1744080656151,-500.0,0.00024658,2]
[357481174,1744080656164,-500.0,0.00024658,2]
[357481175,1744080656177,-500.0,0.00024658,2]
[357481176,1744080656189,-500.0,0.00024658,2]
[357481177,1744080656202,-500.0,0.00024658,2]
[357481178,1744080656214,-500.0,0.00024658,2]
[357481179,1744080656227,-500.0,0.00024658,2]
[357481180,1744080656237,-500.0,0.00024658,2]
[357481181,1744080656251,-500.0,0.00024658,2]
[357481182,1744080656261,-500.0,0.00024658,2]
[357481183,1744080656272,-437.08165054,0.00024658,2]
[357481184,1744080656283,-500.0,0.00024658,2]
[357481185,1744080656293,-500.0,0.00024658,2]
[357481186,1744080656302,-500.0,0.00024658,2]
[357481187,1744080656312,-500.0,0.00024658,2]
[357481188,1744080656322,-500.0,0.00024658,2]
[357481189,1744080656332,-500.0,0.00024658,2]
[357481190,1744080656342,-500.0,0.00024658,2]
[357481191,1744080656352,-500.0,0.00024658,2]
[357481192,1744080656362,-500.0,0.00024658,2]
[357481193,1744080656371,-500.0,0.00024658,2]
[357481194,1744080656381,-500.0,0.00024658,2]
[357481195,1744080656390,-500.0,0.00024658,2]
[357481196,1744080656400,-500.0,0.00024658,2]
[357481197,1744080656409,-500.0,0.00024658,2]
[357481198,1744080656418,-500.0,0.00024658,2]
[357481199,1744080656427,-500.0,0.00024658,2]
[357481200,1744080656437,-500.0,0.00024658,2]
[357481201,1744080656446,-500.0,0.00024658,2]
[357481202,1744080656456,-500.0,0.00024658,2]
[357481203,1744080656467,-500.0,0.00024658,2]
[357481204,1744080656477,-500.0,0.00024658,2]
[357481205,1744080656486,-500.0,0.00024658,2]
[357481206,1744080656496,-500.0,0.00024658,2]
[357481207,1744080656505,-500.0,0.00024658,2]
[357481208,1744080656514,-500.0,0.00024658,2]
[357481209,1744080656525,-500.0,0.00024658,2]
[357481210,1744080656534,-250.0,0.00024658,2]
[357481211,1744080656544,-500.0,0.00024658,2]
[357481212,1744080656553,-500.0,0.00024658,2]
[357481213,1744080656563,-500.0,0.00024658,2]
[357481214,1744080656572,-500.87750444,0.00024673,2]
[357481215,1744080656581,-502.5418433,0.00024673,2]